Cogmind - Beta 13 @@@ ROGUE MODE // 2024.05.31 @ 17:54:33 Player: CanadianCogs Result: Destroyed by Explosive Trap Performance ------------- Evolutions (2) 1000 Regions Visited (6) 1200 Robots Destroyed (31) 155 Value Destroyed (806) 806 Prototype IDs (0) 0 Alien Tech Used (0) 0 Bonus (300) 300 TOTAL SCORE: 3461 Bonus ------- Aligned with FarCom 300 Cogmind --------- Core Integrity 0/550 Matter 295/300 Energy 46/100 System Corruption 0% Temperature Cool (0) Movement Core (150) Ox2 Location -8/Storage Parts ------- > --- POWER (1) -------- (None) > --- PROPULSION (3) --- (None) > --- UTILITY (4) ------ Large Storage Unit Weight Redist. System Advanced Visual Processing Unit Hacking Suite > --- WEAPON (3) ------- (None) > --- INVENTORY (15) --- Reaction Control System Faulty Advanced Beam Cannon Advanced Beam Cannon Ion Cannon Cooled Plasma Cannon Makeshift Shrapnel Gun Flak Cannon AWS/Autocannon Rocket Launcher Rocket Launcher Peak State ------------ > --- POWER ------------ (None) > --- PROPULSION ------- Wheel Wheel Wheel > --- UTILITY ---------- Large Storage Unit Trap Scanner Advanced Visual Processing Unit Hacking Suite > --- WEAPON ----------- Heavy Mace Heavy Mace Heavy Mace > --- INVENTORY -------- Light Treads Weight Redist. System Reaction Control System Ion Cannon Cooled Plasma Cannon Heavy Assault Rifle Makeshift Shrapnel Gun Improved Light Cannon Flak Cannon AWS/Autocannon Rocket Launcher Rocket Launcher [Rating: 28] Favorites ----------- Power Ion Engine Engine Ion Engine Propulsion Light Treads Treads Light Treads Wheel Wheel Utility Large Storage Unit Device Trap Scanner Storage Large Storage Unit Processor Advanced Visual Processing Unit Hackware Hacking Suite Protection Light Armor Plating Weapon Heavy Mace Energy Gun EM Pulse Gun Special Weapon Mining Laser Impact Weapon Heavy Mace Build | -11 -10 -10 -10 -9 -8 -8 ------- Run | Yrd Mat Min Exi Min Mat Sto Slots Evolved 4 | . . . . . 4 . Power . | . . . . . . . Propulsion 1 | . . . . . 1 . Utility 2 | . . . . . 2 . Weapon 1 | . . . . . 1 . Parts Attached 30 | 6 4 . . . 13 7 Power 1 | 1 . . . . . . Engine 1 | 1 . . . . . . Core . | . . . . . . . Reactor . | . . . . . . . Propulsion 12 | 2 . . . . 5 5 Treads 6 | 2 . . . . 2 2 Leg . | . . . . . . . Wheel 6 | . . . . . 3 3 Hover . | . . . . . . . Flight . | . . . . . . . Utility 7 | 1 2 . . . 2 2 Device 2 | . . . . . . 2 Storage 2 | 1 1 . . . . . Processor 1 | . . . . . 1 . Hackware 1 | . 1 . . . . . Protection 1 | . . . . . 1 . Artifact . | . . . . . . . Weapon 10 | 2 2 . . . 6 . Energy Gun 4 | 2 2 . . . . . Energy Cannon . | . . . . . . . Ballistic Gun . | . . . . . . . Ballistic Cannon . | . . . . . . . Launcher . | . . . . . . . Special Weapon 3 | . . . . . 3 . Impact Weapon 3 | . . . . . 3 . Slashing Weapon . | . . . . . . . Piercing Weapon . | . . . . . . . Special Melee Weapon . | . . . . . . . Unidentified Prototypes . | . . . . . . . Parts Lost 13 | . . . . . 8 5 Power 1 | . . . . . 1 . Propulsion 6 | . . . . . 3 3 Utility 2 | . . . . . 1 1 Weapon 4 | . . . . . 3 1 Highest Loss Streak 7 | . . . . . 7 3 To Critical Strikes . | . . . . . . . Average Slot Usage (%) 89 | . 90 100 100 100 78 79 Engine 7 | . 14 14 14 14 6 . Treads 17 | . 28 28 28 28 12 5 Wheel 7 | . . . . . 4 16 Device 1 | . . . . . . 3 Storage 11 | . 17 14 14 14 9 9 Processor 4 | . . . . . 8 9 Hackware 10 | . 3 14 14 14 9 9 Energy Gun 13 | . 26 28 28 28 . . Special Weapon 1 | . . . . . 20 . Impact Weapon 11 | . . . . . 6 26 Naked Turns . | . . . . . . . Heaviest Build 34 | 12 34 29 29 29 31 31 Greatest Support 42 | 40 40 40 40 40 42 30 Greatest Overweight (x) 3 | . . . . . 1 3 Average Overweight (x) . | . . . . . . 1 Largest Inventory Capacity 15 | 8 15 15 15 15 15 15 Average Capacity 14 | 7 12 15 15 15 15 15 Most Carried 15 | 5 5 7 10 11 14 15 Average Carried 9 | 1 2 6 8 10 9 14 Final Capacity 15 | 8 15 15 15 15 15 15 Final Carried 12 | 2 5 7 10 11 12 12 Class Distribution -------------------- 63% | Mutant 15% | Scavenger-Assassin 12% | Scavenger-Mutant 6% | Skirmisher Dominant Class ---------------- Mutant | -10/Materials Mutant | -10/Mines Mutant | -10/Exiles Mutant | -9/Mines Skirmisher | -8/Materials Scavenger-Assassin | -8/Storage Resources | -11 -10 -10 -10 -9 -8 -8 ----------- Run | Yrd Mat Min Exi Min Mat Sto Matter Collected 455 | 231 59 10 . . 95 60 Remotely . | . . . . . . . Salvage Created 932 | 30 161 88 . 73 184 396 Parts 34 | 3 9 1 . 9 2 10 Haulers Intercepted 2 | . . . . . . 2 Recyclers Shooed 1 | . . . . . . 1 Parts Field Recycled . | . . . . . . . Retrieved Matter . | . . . . . . . Parts Self-Destructed . | . . . . . . . Prevented . | . . . . . . . Kills | -11 -10 -10 -10 -9 -8 -8 ------- Run | Yrd Mat Min Exi Min Mat Sto Combat Hostiles Destroyed 22 | . 3 2 . 4 4 9 Melee 5 | . . . . . 1 4 Guns 9 | . 3 2 . 4 . . Cannons 3 | . . . . . 1 2 Classes Destroyed 9 | 1 3 . . . 4 1 Tunneler 2 | 1 1 . . . . . Hauler 2 | . . . . . . 2 Mechanic 1 | . . . . . 1 . Operator 1 | . 1 . . . . . Watcher 3 | . . . . . 1 2 Swarmer 9 | . 1 . . 4 . 4 Grunt 7 | . 2 2 . . . 3 Sentry 4 | . . . . . 2 2 Specialist 2 | . . . . . 2 . Best Kill Streak 5 | 1 3 2 . 4 3 5 Combat Bots Only 5 | . 2 2 . 4 2 5 Max Kills in Single Turn 1 | 1 1 1 . 1 1 1 Gunslinging . | . . . . . . . Exploded . | . . . . . . . Melee 1 | . . . . . 1 1 Uniques/NPCs Destroyed . | . . . . . . . Combat | -11 -10 -10 -10 -9 -8 -8 -------- Run | Yrd Mat Min Exi Min Mat Sto Hostile Shots Fired 239 | . 13 5 . 11 140 70 Missed 66 | . 2 1 . 1 43 19 Damage Taken 2137 | . 115 52 . 84 1207 679 Core 588 | . 12 . . 18 346 212 Absorbed by Shields . | . . . . . . . Regen/Repaired (Parts) 108 | . . . . . 108 . Core Remaining (%) 94 | 100 . . . 88 . . Volleys Fired 30 | 1 16 2 . 5 6 . Largest 3 | 2 2 2 . 2 3 . Hottest 300 | 80 80 80 . 80 300 . Shots Fired 61 | 2 30 4 . 10 15 . Gun 46 | 2 30 4 . 10 . . Cannon . | . . . . . . . Launcher . | . . . . . . . Special 15 | . . . . . 15 . Kinetic . | . . . . . . . Thermal 31 | 2 14 . . . 15 . Explosive . | . . . . . . . Electromagnetic 30 | . 16 4 . 10 . . Robot Hit Streak 7 | 2 6 7 . 4 1 . Robot Miss Streak 5 | . 5 1 . 1 2 . Penetration Max . | . . . . . . . Secondary Targets 2 | . . 1 . 1 . . Max Gunslinging Chain 1 | . . 1 . 1 . . Shots Hit Robots 76 | 2 15 3 . 7 14 35 Core Hits 27 | 1 7 5 . 4 2 8 Critical Kills 2 | . . . . . . 2 Critical Parts Destroyed 8 | . . . . . 3 5 Critical Strikes 11 | . . . . . 3 8 Smash 11 | . . . . . 3 8 Melee Attacks 70 | . . . . . 18 52 Impact 70 | . . . . . 18 52 Slashing . | . . . . . . . Piercing . | . . . . . . . Sneak Attacks 4 | . . . . . 1 3 Combat Hostiles . | . . . . . . . Follow-up Attacks 16 | . . . . . 5 11 Damage Inflicted 2524 | 20 190 127 . 79 714 1394 Guns 332 | 20 190 43 . 79 . . Cannons . | . . . . . . . Explosions 52 | . . 52 . . . . Melee 2012 | . . . . . 618 1394 Ramming 32 | . . 32 . . . . Kinetic . | . . . . . . . Thermal 212 | 20 44 52 . . 96 . Explosive . | . . . . . . . Electromagnetic 268 | . 146 43 . 79 . . Impact 2012 | . . . . . 618 1394 Slashing . | . . . . . . . Piercing . | . . . . . . . Highest Corruption . | . . . . . . . Average Corruption . | . . . . . . . Corruption Purged . | . . . . . . . Corruption Blocked . | . . . . . . . Overload Shots . | . . . . . . . Overflow Damage 563 | . . . . . 232 331 Projectiles 39 | . . . . . . 39 Explosions . | . . . . . . . Melee 524 | . . . . . 232 292 Knockbacks 10 | . . 1 . . 1 8 Impact 7 | . . 1 . . 1 5 Kinetic . | . . . . . . . Secondary 3 | . . . . . . 3 Self-Inflicted Damage . | . . . . . . . Shots . | . . . . . . . Rammed 5 | . . 5 . . . . Targets Rammed 5 | . . 5 . . . . Kicked . | . . . . . . . Crushed . | . . . . . . . Highest Temperature 118 | 18 102 60 . 72 118 . Average Temperature 38 | 12 38 33 . 33 43 . Received Heat Transfer 342 | . 42 30 . . 54 216 Siege Activations . | . . . . . . . Robots Corrupted . | . . . . . . . Combat Hostiles . | . . . . . . . Parts Fried 14 | . . . . . 8 6 Impact Corruptions 22 | . . . . . 6 16 Robots Melted . | . . . . . . . Combat Hostiles . | . . . . . . . Parts Melted . | . . . . . . . Heat Transferred 400 | 50 100 50 . . 200 . Parts Sabotaged . | . . . . . . . Parts Stolen . | . . . . . . . Parts Stripped . | . . . . . . . Power Chain Reactions . | . . . . . . . Alert | -11 -10 -10 -10 -9 -8 -8 ------- Run | Yrd Mat Min Exi Min Mat Sto Peak Influence 144 | 5 121 81 . 105 94 144 Initial 46 | . 3 46 . . 40 26 Average 41 | 1 74 19 . 90 57 44 Maximum Alert Level . | . . . . . . . Low Security (%) 100 | 100 100 100 . 100 100 100 Level 1 . | . . . . . . . Level 2 . | . . . . . . . Level 3 . | . . . . . . . Level 4 . | . . . . . . . Level 5 . | . . . . . . . High Security . | . . . . . . . Max Security . | . . . . . . . Squads Dispatched 4 | . 1 . . . 1 2 Investigation 2 | . 1 . . . . 1 Extermination . | . . . . . . . Reinforcement 2 | . . . . . 1 1 Assault . | . . . . . . . Garrison . | . . . . . . . Intercept . | . . . . . . . Searches Triggered . | . . . . . . . Construction Impeded . | . . . . . . . Haulers Reinforced . | . . . . . . . Active Scanning Responses . | . . . . . . . Cargo Convoy Interrupts . | . . . . . . . Stealth | -11 -10 -10 -10 -9 -8 -8 --------- Run | Yrd Mat Min Exi Min Mat Sto Distress Signals 2 | . 1 . . . . 1 Communications Jammed . | . . . . . . . Distress Signals . | . . . . . . . Times Spotted 34 | . 7 2 . 4 7 14 Peak Tracking Total 6 | . 3 2 . 3 3 6 Tactical Retreats 2 | . . . . . . 2 Traps | -11 -10 -10 -10 -9 -8 -8 ------- Run | Yrd Mat Min Exi Min Mat Sto Traps Triggered 6 | . . . . . . 6 Indirectly . | . . . . . . . Trap Hack Attempts . | . . . . . . . Triggered . | . . . . . . . Disarmed . | . . . . . . . Reprogrammed . | . . . . . . . Reused . | . . . . . . . Traps Extracted . | . . . . . . . Installed . | . . . . . . . Triggered . | . . . . . . . Machines | -11 -10 -10 -10 -9 -8 -8 ---------- Run | Yrd Mat Min Exi Min Mat Sto Machines Disabled 2 | . 1 1 . . . . Max in Single Turn 1 | . 1 1 . . . . Machines Repaired . | . . . . . . . Machines Dismantled . | . . . . . . . Machines Sabotaged . | . . . . . . . Overloaded Fab Kills . | . . . . . . . Hacking | -11 -10 -10 -10 -9 -8 -8 --------- Run | Yrd Mat Min Exi Min Mat Sto Machines Accessed 10 | . 5 . . . 1 4 Terminals 8 | . 5 . . . . 3 Fabricators . | . . . . . . . Repair Stations 1 | . . . . . 1 . Recycling Units 1 | . . . . . . 1 Scanalyzers . | . . . . . . . Garrison Access . | . . . . . . . Total Hacks 34 | . 21 . . . 4 9 Successful 17 | . 8 . . . 4 5 Failed 17 | . 13 . . . . 4 Catastrophic 3 | . 3 . . . . . Database Lockouts . | . . . . . . . Manual 28 | . 20 . 1 . . 7 Terminals 29 | . 21 . . . . 8 Fabricators . | . . . . . . . Repair Stations 4 | . . . . . 4 . Recycling Units 1 | . . . . . . 1 Scanalyzers . | . . . . . . . Garrison Access . | . . . . . . . Terminal Hacks 6 | . 4 . . . . 2 Part Schematic 1 | . . . . . . 1 Robot Schematic 3 | . 3 . . . . . Robot Analysis 1 | . 1 . . . . . Open Door 1 | . . . . . . 1 Fabricator Hacks . | . . . . . . . Repair Station Hacks 4 | . . . . . 4 . Scan Component 2 | . . . . . 2 . Repair 2 | . . . . . 2 . Recycling Unit Hacks . | . . . . . . . Scanalyzer . | . . . . . . . Garrison Access Hacks . | . . . . . . . Unauthorized Hacks 7 | . 4 . . . . 3 Terminals 6 | . 4 . . . . 2 Botnet 6 | . 4 . . . . 2 Fabricators . | . . . . . . . Repair Stations . | . . . . . . . Recycling Units 1 | . . . . . . 1 Tunnel 1 | . . . . . . 1 Scanalyzers . | . . . . . . . Garrison Access . | . . . . . . . Data Cores Recovered 1 | . 1 . . . . . Used . | . . . . . . . Hacking Detections 9 | . 5 . . . 1 3 Full Trace Events 7 | . 5 . . . . 2 Feedback Events . | . . . . . . . Feedback Blocked . | . . . . . . . Robot Schematics Acquired 3 | . 3 . . . . . Robots Built . | . . . . . . . Authchips . | . . . . . . . Time . | . . . . . . . Total Robot Build Rating . | . . . . . . . Part Schematics Acquired 1 | . . . . . . 1 Parts Built . | . . . . . . . Authchips . | . . . . . . . Time . | . . . . . . . Total Part Build Rating . | . . . . . . . Parts Repaired 2 | . . . . . 2 . Time 52 | . . . . . 52 . Parts Recycled . | . . . . . . . Recycled Matter . | . . . . . . . Retrieved Matter . | . . . . . . . Retrieved Components . | . . . . . . . Parts Scanalyzed . | . . . . . . . Part Schematics Acquired . | . . . . . . . Parts Damaged . | . . . . . . . Bothacking | -11 -10 -10 -10 -9 -8 -8 ------------ Run | Yrd Mat Min Exi Min Mat Sto Used RIF Installer . | . . . . . . . Robots Hacked . | . . . . . . . Non-combat . | . . . . . . . Combat . | . . . . . . . Robot Hacks Applied . | . . . . . . . Relay Couplers Released . | . . . . . . . Fabnet Peak Effective % . | . . . . . . . Robots Rewired . | . . . . . . . Allies Hacked . | . . . . . . . Hacks Repelled . | . . . . . . . Allies | -11 -10 -10 -10 -9 -8 -8 -------- Run | Yrd Mat Min Exi Min Mat Sto Total Allies . | . . . . . . . Largest Group . | . . . . . . . Highest-Rated Group . | . . . . . . . Highest-Rated Ally . | . . . . . . . Total Orders . | . . . . . . . Ally Attacks . | . . . . . . . Total Damage . | . . . . . . . Kills . | . . . . . . . Allies Corrupted . | . . . . . . . Allies Melted . | . . . . . . . Intel | -11 -10 -10 -10 -9 -8 -8 ------- Run | Yrd Mat Min Exi Min Mat Sto Robot Analysis Total 1 | . 1 . . . . . Derelict Logs Recovered 1 | . . 1 . . . . Drone Launches . | . . . . . . . Drone Recoveries . | . . . . . . . Exploration | -11 -10 -10 -10 -9 -8 -8 ------------- Run | Yrd Mat Min Exi Min Mat Sto Turns Passed 5095 | 88 323 1417 545 228 494 2000 Spaces Moved 1951 | 55 166 788 341 130 184 287 Core 14 | 14 . . . . . . Treads 1585 | 41 166 788 341 130 119 . Legs . | . . . . . . . Wheels 352 | . . . . . 65 287 Hover . | . . . . . . . Flight . | . . . . . . . Fastest Speed 50 | 50 160 160 160 160 93 80 Average Speed 148 | 132 160 160 160 160 139 98 Slowest Speed 240 | 160 160 160 160 160 240 125 Overloaded Moves . | . . . . . . . Propulsion Burnouts . | . . . . . . . Robots Hopped . | . . . . . . . Cave-ins Triggered . | . . . . . . . Exploration Rate (%) 37 | 4 27 99 62 30 15 24 Regions Visited 6 Branch Regions 4 Pre-discovered Areas 2 | . . 1 . . . 1 Known Exits Taken . | . . . . . . . Unknown Exits Taken 6 | 1 1 1 1 1 1 . Scrap Searched 1 | . . 1 . . . . Spaces Dug 9 | . . . . . 7 2 Terrain Destroyed 26 | . . 16 . . 8 2 Melee 2 | . . . . . . 2 Projectile 8 | . . . . . 8 . AOE 16 | . . 16 . . . . Terrain Rammed . | . . . . . . . Walls Destroyed . | . . . . . . . Machines Disabled . | . . . . . . . Actions | -11 -10 -10 -10 -9 -8 -8 --------- Run | Yrd Mat Min Exi Min Mat Sto Total 3975 | 68 195 937 341 140 355 1939 Wait 1845 | . . 141 . 5 124 1575 Move 1945 | 54 165 787 340 129 183 287 Hop . | . . . . . . . Pick Up 41 | 7 7 2 1 1 14 9 Fast Attach 1 | 1 . . . . . . Attach 29 | 5 4 . . . 13 7 Detach . | . . . . . . . Swap . | . . . . . . . Drop 13 | . 3 . . . 2 8 Fire 30 | 1 16 2 . 5 6 . Melee 50 | . . . . . 13 37 Ram . | . . . . . . . Kick . | . . . . . . . Crush 5 | . . 5 . . . . Escape Stasis 16 | . . . . . . 16 Rewire . | . . . . . . . Trap . | . . . . . . . Miscellaneous . | . . . . . . . Route ------- -11/Scrapyard -10/Materials -10/Mines (discovered 4 exits: [*Mat x2] / *Exi / [*Sub]) -10/Exiles (discovered 2 exits: [*Min x2]) -9/Mines -8/Materials -8/Storage History --------- Turn | Location | Event 5 | -11/Scrapyard | Discovered new exit (range 16) 89 | -11/Scrapyard | Entered Materials 301 | -10/Materials | Build established: Mutant 316 | -10/Materials | Discovered new exit (range 13) 412 | -10/Materials | Entered Mines 518 | -10/Mines | Received a Rocket Launcher from a helpful Derelict 533 | -10/Mines | Learned location of Storage (-8) 915 | -10/Mines | Discovered new exit (range 6) 952 | -10/Mines | Deemed a non-threat by the Exiles lab entrance 952 | -10/Mines | Discovered new exit (range 5) 1472 | -10/Mines | Discovered new exit (range 10) 1651 | -10/Mines | Discovered new exit (range 4) 1829 | -10/Mines | Entered Exiles 1853 | -10/Exiles | Discovered new exit (range 15) 1893 | -10/Exiles | Met 8R-AWN 1919 | -10/Exiles | Met EX-HEX 1967 | -10/Exiles | Met EX-BIN 1989 | -10/Exiles | Aligned with FarCom system 1991 | -10/Exiles | Given EX-Vault access code 2028 | -10/Exiles | Opened EX-Vault 2036 | -10/Exiles | Found Prototype Ballistic Cannon 2069 | -10/Exiles | Warned to stay clear of 0b10 Research branches 2115 | -10/Exiles | Met EX-DEC 2173 | -10/Exiles | Discovered new exit (range 12) 2374 | -10/Exiles | Left Exiles lab with AWS/Autocannon 2374 | -10/Exiles | Entered Mines 2381 | -9/Mines | Met a Derelict bent on vengeance 2465 | -9/Mines | A weapon hastily lodged in a ceiling crevice suddenly fell to the ground 2510 | -9/Mines | Assembled infested the area 2515 | -9/Mines | Assisted by a Guerilla fighting off Assembled 2576 | -9/Mines | Discovered new exit (range 13) 2602 | -9/Mines | Entered Materials 2602 | -8/Materials | Evolved 4 slots: Propulsion x1, Utility x2, Weapon x1 2655 | -8/Materials | Repaired Lgt. Treads 2682 | -8/Materials | Repaired Lgt. Treads 2913 | -8/Materials | Build established: Skirmisher 2997 | -8/Materials | Core integrity fell below 50% 3021 | -8/Materials | Lost 7 parts (1p2n1u3w) 3062 | -8/Materials | Discovered new exit (range 11) 3096 | -8/Materials | Entered Storage 3438 | -8/Storage | Build established: Scavenger-Assassin 3979 | -8/Storage | Core integrity fell below 20% 4012 | -8/Storage | Lost 3 parts (2n1u) 4274 | -8/Storage | Build established: Mutant 4796 | -8/Storage | Build established: Scavenger-Mutant 5096 | -8/Storage | Destroyed by Explosive Trap Last Messages --------------- 05052_ G-47 Trooper system corrupted by crushing effect. 05053_ Transfer Shaft disabled. 05055_ Critical hit (Burn: +37). 05058_ G-47 Trooper knocked back. 05059_ Hvy. Mace destroyed. 05060_ Hvy. Mace follow-up attack on G-47 Trooper. 05060_ Destroyed Lgt. Nuclear Core. 05060_ G-47 Trooper system corrupted by crushing effect. 05063_ G-47 Trooper knocked back. 05063_ G-47 Trooper destroyed. 05066_ Critical hit (Burn: +37). 05066_ G-47 Trooper destroyed. 05085_ Triggered Explosive Trap. 05085_ An explosion rips through the floor. 05085_ Transport Mainframe disabled. 05092_ Dropped Hvy. Mace. 05094_ Dropped Lgt. Treads. 05096_ Triggered Explosive Trap. 05096_ An explosion rips through the floor. 05096_ Wheel destroyed. Map ----- +----------------------------------------------------+ | ???????????????????????????????? | | ???????????????????????????????? | | ???????????????????????????????? | | ???????????????????????????????? | | ???????????????????????????????? | | ???????????????????????????????? | | ???????????????????????????????? | | ???????????????????????????????? | | ????????????????? ???????????? | | ????????????????? ???????????? | | ????????????????? #??????????? | | ????????????????? #??????????? | | ????????????????? #??????????? | | ????????????????? #??????????? | | ????????????????# #??????????? | | ????????????????# #??????????? | | ????????????????# #??????????? | | ????????????????# #??????????? | | ????????????????# #??????????? | | ????????????????# +??????????? | | ????????????????# #??????????? | | ?????????#####??# #??????????? | | ??????####"T"#### #??????????? | | ??????# # #??????????? | | ??????#==/ #??????????? | | ??????#@=/= #??????????? | | ??????#=== " r #??????????? | | ??????# " " #??????????? | | ??????# """" #??????????? | | ??????# """" # #??????????? | | ??????# # #??????????? | | ??????##" "### ## #??????????? | | ???????#"R"#?#### #??#####???? | | ???????#"""#????#^ ^#??#"""#???? | | ???????#####????#^ ^####"Y"####? | | ????????????????# # /#? | | ????????????????# # #? | | ????????????????# # """ """ #? | | ????????????????# %#% "" """ #? | | ????????????????# %%+% "" """ #? | | ????????????????# %#% #? | | ????????????????# % # #? | | ????????????????# # #? | | ????????????????# ##"T"######? | | ?????????######## ############ | | ?????????# % | | ?????????# % | | ?????????# | | ?????????####################### | | ???????????????????????????????? | +----------------------------------------------------+ Best States ------------- Heat Dissipation 31 Energy Generation 10 Energy Capacity 250 Matter Stores 300 Matter Capacity 300 Sight Range 20 Terrain Scan Density 10 Armor Coverage 150 Evasion (%) 44 Recoil Reduction 2 Offensive Hacking 10 Item Schematics ----------------- Magnetic Acceleration Cannon | -8/Storage | Hacked Robot Schematics ------------------ G-34 Mercenary | -10/Materials | Hacked S-10 Pest | -10/Materials | Hacked W-16 Scout | -10/Materials | Hacked Fabricated ------------ Nothing Alien Tech Used ----------------- None Achievements -------------- None Challenges ------------ None Game ------ Seed CoilTargetProtection Manual? 0 Play Time 00:38:22 Cumulative 36.7 hours Start 2024.05.31 @ 17:19:51 End 2024.05.31 @ 17:54:33 Sessions 1 Manual Loads 0 Difficulty Rogue Special Mode None Game No. 63 Rogue 63 Adventurer 0 Explorer 0 Win Type - Total 0 Types 0/0/0/0/0/0/0/0/0 Lore% 21 Gallery% 29 Achievement% 26 Wizard Run 0 Options --------- Layout 0 ASCII 0 Keyboard 0 Movement Mouse Keybinds 0 Fullscreen 2 Font 18/SmallcapsGlow Map View 38x25 Zoom Use 80% Tactical HUD 1 Map Filters NONE Filters NONE Steam 1 RUN: 56ded9a5-7080-40f3-8f34-765bd8865591